fUST/lending_fUST_20240705
["ID","MTS","AMOUNT","RATE_DAILY","PERIOD"]
[331175100,1720118497052,843.93968101,9.999e-05,2]
[331175101,1720118503371,3113.3136516,0.00011194,2]
[331175102,1720118504898,155.54758471,9.999e-05,2]
[331175103,1720118505180,182.76510923,9.999e-05,2]
[331175104,1720118507085,843.93968101,9.999e-05,2]
[331175105,1720118508908,776.91953525,9.999e-05,2]
[331175106,1720118509254,155.19258173,9.999e-05,2]
[331175107,1720118510908,162.56962364,9.999e-05,2]
[331175108,1720118511760,294.28371075,9.999e-05,2]
[331175109,1720118515269,525.83951756,0.0001,2]
[331175110,1720118524667,157.04757413,9.999e-05,2]
[331175111,1720118526284,525.83951756,0.0001,2]
[331175112,1720118527165,154.86836189,9.999e-05,2]
[331175113,1720118528376,2100.92504791,9.999e-05,2]
[331175114,1720118534283,157.39913555,9.999e-05,2]
[331175115,1720118557308,154.86836189,9.999e-05,2]
[331175117,1720118579408,271.36021487,9.999e-05,2]
[331175118,1720118579439,200.62711574,9.999e-05,2]
[331175119,1720118583771,293.40080966,9.999e-05,2]
[331175120,1720118584334,195.55623493,9.999e-05,2]
[331175121,1720118589211,286.77263575,9.999e-05,2]
[331175122,1720118591946,776.17162697,9.999e-05,2]
[331175123,1720118599958,309.6650717,0.00011072,2]
[331175125,1720118611222,522.4072504,0.0001116,2]
[331175126,1720118613795,309.67483522,9.999e-05,2]
[331175127,1720118627285,157.24535379,9.999e-05,2]
[331175131,1720118661050,843.30555184,9.999e-05,2]
[331175132,1720118662391,329.51652291,0.0001,2]
[331175133,1720118665372,2100.92504791,9.999e-05,2]
[331175134,1720118673127,150.0,0.000225,30]
[331175135,1720118694259,292.73953072,9.999e-05,2]
[331175137,1720118703099,307.84,0.00011341,2]
[331175138,1720118706098,286.35636619,9.999e-05,2]
[331175141,1720118752201,154.86836189,9.999e-05,2]
[331175142,1720118756595,866.17,0.00010959,2]
[331175143,1720118757285,525.74955487,0.0001,2]
[331175144,1720118762813,220.84480133,9.999e-05,2]
[331175145,1720118764241,723.6137849,9.999e-05,2]
[331175146,1720118767493,381.11,0.00010959,2]
[331175147,1720118808204,14877.44110607,9.999e-05,2]
[331175148,1720118831393,1255.87105743,9.999e-05,2]
[331175151,1720118851695,154.86836189,9.999e-05,2]
[331175152,1720118859807,239.25593046,0.00010959,2]
[331175153,1720118888564,4696.33537857,9.999e-05,2]
[331175154,1720118903814,525.83951756,0.0001,2]
[331175155,1720118917023,-390.2260171,0.00011414,2]
[331175156,1720118917069,-490.18173149,0.00011457,2]
[331175157,1720118917121,-332.59866441,0.00011457,2]
[331175158,1720118917163,-250.0,0.00011541,2]
[331175159,1720118917204,-156.0,0.00011577,2]
[331175160,1720118917248,-141.80908418,0.00011578,2]
[331175161,1720118917304,-331.49051712,0.00011578,2]
[331175162,1720118920142,853.8405688,0.00011207,2]
[331175163,1720118922969,457.31863482,9.999e-05,2]
[331175165,1720118928276,299.06126958,9.999e-05,2]
[331175166,1720118936733,244.0690924,9.999e-05,2]
[331175167,1720118942186,-922.25386888,0.00011578,2]
[331175171,1720118942304,-922.25386888,0.00011578,2]
[331175173,1720118942383,-273.93207352,0.00011578,2]
[331175181,1720118946736,182.38955161,9.999e-05,2]
[331175189,1720118947319,157.39913555,9.999e-05,2]
[331175190,1720118967264,-964.6226651,0.00011578,2]
[331175191,1720118967364,-964.6226651,0.00011578,2]
[331175193,1720118992868,-1003.20757171,0.00011578,2]
[331175194,1720118992929,-561.21001243,0.00011578,2]
[331175195,1720118992985,-1003.20757171,0.00011578,2]
[331175196,1720119011798,525.83951756,0.0001,2]
[331175215,1720119032666,-2907.25,0.00011578,2]
[331175218,1720119032678,-1515.87004296,0.00011578,2]
[331175220,1720119032689,-413.01757721,0.00011578,2]
[331175222,1720119032701,-2681.32688395,0.00011578,2]
[331175224,1720119032711,-4696.33537857,0.00011578,2]
[331175226,1720119032720,-3746.53610393,0.00011578,2]
[331175228,1720119032734,-733.99330087,0.00011578,2]
[331175275,1720119038764,-15898.48585242,0.00011578,2]
[331175277,1720119038775,-509.9900595,0.00011634,2]
[331175279,1720119038790,-361.37084438,0.0001202,2]
[331175281,1720119038800,-425.55894179,0.00013598,2]
[331175282,1720119038810,-2339.9999992,0.00013688,2]
[331175284,1720119038820,-584.9999998,0.00013689,2]
[331175286,1720119038830,-509.93924182,0.00013698,2]
[331175287,1720119038839,-237.18240255,0.00013698,2]
[331175288,1720119038849,-500.0,0.00013698,2]
[331175289,1720119038859,-500.0,0.00013698,2]
[331175290,1720119038868,-500.0,0.00013698,2]
[331175291,1720119038878,-500.0,0.00013698,2]
[331175292,1720119038888,-500.0,0.00013698,2]
[331175293,1720119038899,-516.42381261,0.00013698,2]
[331175294,1720119038912,-500.0,0.00013698,2]
[331175295,1720119038922,-500.0,0.00013698,2]
[331175296,1720119038932,-500.0,0.00013698,2]
[331175297,1720119038945,-500.0,0.00013698,2]
[331175298,1720119038954,-500.0,0.00013698,2]
[331175299,1720119038964,-500.0,0.00013698,2]
[331175300,1720119038974,-500.0,0.00013698,2]
[331175301,1720119038984,-500.0,0.00013698,2]
[331175302,1720119038994,-513.44511398,0.00013698,2]
[331175303,1720119039003,-500.0,0.00013698,2]
[331175304,1720119039013,-500.0,0.00013698,2]
[331175305,1720119039028,-500.0,0.00013698,2]
[331175306,1720119039039,-500.0,0.00013698,2]
[331175307,1720119039048,-580.82585361,0.00013698,2]
[331175308,1720119039058,-500.0,0.00013698,2]
[331175309,1720119039068,-500.0,0.00013698,2]
[331175310,1720119039078,-500.0,0.00013698,2]
[331175311,1720119039088,-505.86390228,0.00013698,2]
[331175312,1720119039099,-500.0,0.00013698,2]
[331175313,1720119039110,-500.0,0.00013698,2]
[331175314,1720119039120,-500.0,0.00013698,2]
[331175315,1720119039130,-500.0,0.00013698,2]
[331175316,1720119039140,-500.0,0.00013698,2]
[331175317,1720119039151,-500.0,0.00013698,2]
[331175318,1720119039161,-500.0,0.00013698,2]
[331175319,1720119039172,-500.0,0.00013698,2]
[331175320,1720119039182,-500.0,0.00013698,2]
[331175321,1720119039192,-500.0,0.00013698,2]
[331175322,1720119039202,-500.0,0.00013698,2]
[331175323,1720119039212,-500.0,0.00013698,2]
[331175324,1720119039222,-500.0,0.00013698,2]
[331175325,1720119039231,-500.0,0.00013698,2]
[331175326,1720119039241,-508.73362254,0.00013698,2]
[331175327,1720119039251,-500.0,0.00013698,2]
[331175328,1720119039260,-500.0,0.00013698,2]
[331175329,1720119039270,-500.0,0.00013698,2]
[331175330,1720119039280,-500.0,0.00013698,2]
[331175331,1720119039290,-500.0,0.00013698,2]
[331175332,1720119039300,-500.0,0.00013698,2]
[331175333,1720119039310,-500.0,0.00013698,2]
[331175334,1720119039319,-500.0,0.00013698,2]
[331175335,1720119039329,-500.0,0.00013698,2]
[331175336,1720119039338,-500.0,0.00013698,2]
[331175337,1720119039348,-500.0,0.00013698,2]
[331175338,1720119039357,-500.0,0.00013698,2]
[331175339,1720119039367,-505.22952219,0.00013698,2]
[331175340,1720119039376,-500.0,0.00013698,2]
[331175341,1720119039385,-500.0,0.00013698,2]
[331175342,1720119039394,-500.0,0.00013698,2]
[331175343,1720119039405,-500.0,0.00013698,2]
[331175344,1720119039415,-500.0,0.00013698,2]
[331175345,1720119039424,-500.0,0.00013698,2]
[331175346,1720119039434,-500.0,0.00013698,2]
[331175347,1720119039443,-500.0,0.00013698,2]
[331175348,1720119039453,-500.0,0.00013698,2]
[331175349,1720119039462,-501.4635218,0.00013698,2]
[331175350,1720119039471,-500.0,0.00013698,2]
[331175351,1720119039481,-500.0,0.00013698,2]
[331175352,1720119039491,-500.0,0.00013698,2]
[331175353,1720119039501,-276.08140039,0.00013698,2]
[331175354,1720119039510,-317.44575777,0.00013698,2]
[331175355,1720119039520,-500.0,0.00013698,2]
[331175356,1720119039530,-500.0,0.00013698,2]
[331175357,1720119039540,-500.0,0.00013698,2]
[331175358,1720119039549,-500.0,0.00013698,2]
[331175359,1720119039559,-500.0,0.00013698,2]
[331175360,1720119039568,-500.0,0.00013698,2]
[331175361,1720119039578,-500.0,0.00013698,2]
[331175362,1720119039587,-500.0,0.00013698,2]
[331175363,1720119039597,-500.0,0.00013698,2]
[331175364,1720119039607,-500.0,0.00013698,2]
[331175365,1720119039617,-627.36491239,0.00013698,2]
[331175366,1720119039627,-500.0,0.00013698,2]
[331175367,1720119039637,-912.43,0.00013698,2]
[331175368,1720119039647,-500.0,0.00013698,2]
[331175369,1720119039656,-500.0,0.00013698,2]
[331175370,1720119039666,-532.2078891,0.00013698,2]
[331175371,1720119039675,-500.0,0.00013698,2]
[331175372,1720119039685,-500.0,0.00013698,2]
[331175373,1720119039694,-500.0,0.00013698,2]
[331175374,1720119039703,-500.0,0.00013698,2]
[331175375,1720119039713,-521.57931281,0.00013698,2]
[331175376,1720119039722,-500.0,0.00013698,2]
[331175377,1720119039732,-500.0,0.00013698,2]
[331175378,1720119039742,-637.43450495,0.00013698,2]
[331175379,1720119039752,-305.24475552,0.00013698,2]
[331175380,1720119039762,-500.0,0.00013698,2]
[331175381,1720119039772,-500.0,0.00013698,2]
[331175382,1720119039782,-500.0,0.00013698,2]
[331175383,1720119039791,-500.0,0.00013698,2]
[331175384,1720119039803,-500.0,0.00013698,2]
[331175385,1720119039813,-500.0,0.00013698,2]
[331175386,1720119039823,-500.0,0.00013698,2]
[331175387,1720119039833,-871.03,0.00013698,2]
[331175388,1720119039843,-500.0,0.00013698,2]
[331175389,1720119039854,-500.0,0.00013698,2]
[331175390,1720119039863,-500.0,0.00013698,2]
[331175391,1720119039873,-4341.69,0.00013698,2]
[331175392,1720119039882,-500.0,0.00013698,2]
[331175393,1720119039892,-500.0,0.00013698,2]
[331175394,1720119039903,-500.0,0.00013698,2]
[331175395,1720119039912,-500.0,0.00013698,2]
[331175396,1720119039923,-500.0,0.00013698,2]
[331175397,1720119039935,-500.0,0.00013698,2]
[331175398,1720119039947,-500.0,0.00013698,2]
[331175399,1720119039957,-500.0,0.00013698,2]
[331175400,1720119039967,-500.0,0.00013698,2]
[331175401,1720119039979,-500.0,0.00013698,2]
[331175402,1720119039989,-500.0,0.00013698,2]
[331175403,1720119039998,-500.0,0.00013698,2]
[331175404,1720119040008,-500.0,0.00013698,2]
[331175405,1720119040020,-500.0,0.00013698,2]
[331175406,1720119040030,-500.0,0.00013698,2]
[331175407,1720119040039,-500.0,0.00013698,2]
[331175408,1720119040048,-500.0,0.00013698,2]
[331175409,1720119040058,-544.46695782,0.00013698,2]
[331175410,1720119040067,-500.0,0.00013698,2]
[331175411,1720119040076,-2501.76,0.00013698,2]
[331175412,1720119040086,-500.0,0.00013698,2]
[331175413,1720119040096,-500.0,0.00013698,2]
[331175414,1720119040105,-500.0,0.00013698,2]
[331175415,1720119040115,-500.0,0.00013698,2]
[331175416,1720119040124,-500.0,0.00013698,2]
[331175417,1720119040133,-500.0,0.00013698,2]
[331175418,1720119040144,-500.0,0.00013698,2]
[331175419,1720119040153,-500.0,0.00013698,2]
[331175420,1720119040162,-500.0,0.00013698,2]
[331175421,1720119040171,-500.0,0.00013698,2]
[331175422,1720119040181,-644.76,0.00013698,2]
[331175423,1720119040190,-500.0,0.00013698,2]
[331175424,1720119040199,-500.0,0.00013698,2]
[331175425,1720119040208,-500.0,0.00013698,2]
[331175426,1720119040217,-500.0,0.00013698,2]
[331175427,1720119040227,-500.0,0.00013698,2]
[331175429,1720119040236,-500.0,0.00013698,2]
[331175430,1720119040245,-815.69,0.00013698,2]
[331175431,1720119040254,-576.88372015,0.00013698,2]
[331175432,1720119040263,-500.0,0.00013698,2]
[331175433,1720119040272,-416.28671804,0.00013698,2]
[331175434,1720119040281,-500.0,0.00013698,2]
[331175435,1720119040290,-500.0,0.00013698,2]
[331175436,1720119040299,-500.0,0.00013698,2]
[331175437,1720119040308,-541.87577356,0.00013698,2]
[331175438,1720119040317,-500.0,0.00013698,2]
[331175439,1720119040328,-500.0,0.00013698,2]
[331175440,1720119040337,-500.0,0.00013698,2]
[331175441,1720119040346,-500.0,0.00013698,2]
[331175442,1720119040355,-321.24132141,0.00013698,2]
[331175443,1720119040365,-500.0,0.00013698,2]
[331175444,1720119040374,-500.0,0.00013698,2]
[331175445,1720119040383,-500.0,0.00013698,2]
[331175446,1720119040392,-500.0,0.00013698,2]
[331175447,1720119040402,-500.0,0.00013698,2]
[331175448,1720119040412,-500.0,0.00013698,2]
[331175449,1720119040421,-500.0,0.00013698,2]
[331175450,1720119040431,-500.0,0.00013698,2]
[331175451,1720119040445,-500.0,0.00013698,2]
[331175452,1720119040454,-500.0,0.00013698,2]
[331175453,1720119040464,-500.0,0.00013698,2]
[331175454,1720119040473,-500.0,0.00013698,2]
[331175455,1720119040483,-500.0,0.00013698,2]
[331175456,1720119040492,-310.60040158,0.00013698,2]
[331175457,1720119040502,-500.0,0.00013698,2]
[331175458,1720119040512,-514.52779288,0.00013698,2]
[331175459,1720119040522,-500.0,0.00013698,2]
[331175460,1720119040531,-500.0,0.00013698,2]
[331175461,1720119040540,-500.0,0.00013698,2]
[331175462,1720119040550,-500.0,0.00013698,2]
[331175463,1720119040559,-500.0,0.00013698,2]
[331175464,1720119040568,-500.0,0.00013698,2]
[331175465,1720119040578,-500.0,0.00013698,2]
[331175466,1720119040587,-500.0,0.00013698,2]
[331175467,1720119040596,-500.0,0.00013698,2]
[331175468,1720119040605,-208.54,0.00013698,2]
[331175469,1720119040615,-500.0,0.00013698,2]
[331175470,1720119040624,-500.0,0.00013698,2]
[331175472,1720119040740,-500.0,0.00013698,2]
[331175473,1720119040751,-500.0,0.00013698,2]
[331175474,1720119040761,-567.54321161,0.00013698,2]
[331175475,1720119040771,-500.0,0.00013698,2]
[331175476,1720119040780,-500.0,0.00013698,2]
[331175477,1720119040789,-502.30610212,0.00013698,2]
[331175478,1720119040799,-500.0,0.00013698,2]
[331175479,1720119040808,-500.0,0.00013698,2]
[331175480,1720119040817,-158.89377539,0.00013698,2]
[331175481,1720119040827,-500.0,0.00013698,2]
[331175482,1720119040836,-500.0,0.00013698,2]
[331175483,1720119040845,-500.0,0.00013698,2]
[331175484,1720119040854,-500.0,0.00013698,2]
[331175485,1720119040864,-500.0,0.00013698,2]
[331175486,1720119040873,-500.0,0.00013698,2]
[331175487,1720119040882,-508.55297528,0.00013698,2]
[331175488,1720119040891,-500.0,0.00013698,2]
[331175489,1720119040901,-500.0,0.00013698,2]
[331175490,1720119040910,-500.0,0.00013698,2]
[331175491,1720119040920,-500.0,0.00013698,2]
[331175492,1720119040930,-500.0,0.00013698,2]
[331175493,1720119040943,-510.23074069,0.00013698,2]
[331175494,1720119040953,-500.0,0.00013698,2]
[331175495,1720119040962,-500.0,0.00013698,2]
[331175496,1720119040973,-500.0,0.00013698,2]
[331175497,1720119040982,-500.0,0.00013698,2]
[331175498,1720119040992,-500.0,0.00013698,2]
[331175499,1720119041001,-500.0,0.00013698,2]
[331175500,1720119041011,-500.0,0.00013698,2]
[331175501,1720119041022,-500.0,0.00013698,2]
[331175502,1720119041032,-500.0,0.00013698,2]
[331175503,1720119041042,-500.0,0.00013698,2]
[331175505,1720119041051,-693.94,0.00013698,2]
[331175506,1720119041060,-500.0,0.00013698,2]
[331175507,1720119041069,-546.19,0.00013698,2]
[331175508,1720119041079,-500.0,0.00013698,2]
[331175509,1720119041088,-500.0,0.00013698,2]
[331175510,1720119041097,-500.0,0.00013698,2]
[331175511,1720119041107,-500.0,0.00013698,2]
[331175512,1720119041116,-500.0,0.00013698,2]
[331175513,1720119041125,-500.0,0.00013698,2]
[331175514,1720119041134,-500.0,0.00013698,2]
[331175515,1720119041144,-500.0,0.00013698,2]
[331175516,1720119041155,-500.0,0.00013698,2]
[331175517,1720119041165,-500.0,0.00013698,2]
[331175518,1720119041174,-500.0,0.00013698,2]
[331175519,1720119041185,-500.0,0.00013698,2]
[331175520,1720119041194,-500.0,0.00013698,2]
[331175521,1720119041203,-500.0,0.00013698,2]
[331175522,1720119041213,-500.0,0.00013698,2]
[331175523,1720119041223,-500.0,0.00013698,2]
[331175524,1720119041232,-511.74064398,0.00013698,2]
[331175525,1720119041241,-500.0,0.00013698,2]
[331175526,1720119041250,-500.0,0.00013698,2]
[331175527,1720119041259,-500.0,0.00013698,2]
[331175528,1720119041269,-500.0,0.00013698,2]
[331175529,1720119041282,-500.0,0.00013698,2]
[331175530,1720119041293,-500.0,0.00013698,2]
[331175531,1720119041304,-500.0,0.00013698,2]
[331175532,1720119041313,-500.0,0.00013698,2]
[331175533,1720119041323,-500.0,0.00013698,2]
[331175534,1720119041332,-500.0,0.00013698,2]
[331175535,1720119041342,-536.14,0.00013698,2]
[331175536,1720119041351,-500.0,0.00013698,2]
[331175537,1720119041359,-500.0,0.00013698,2]
[331175538,1720119041368,-500.0,0.00013698,2]
[331175539,1720119041377,-500.0,0.00013698,2]
[331175540,1720119041386,-500.0,0.00013698,2]
[331175541,1720119041395,-500.0,0.00013698,2]
[331175542,1720119041406,-500.0,0.00013698,2]
[331175543,1720119041417,-500.0,0.00013698,2]
[331175544,1720119041426,-360.09546543,0.00013698,2]
[331175545,1720119041435,-500.0,0.00013698,2]
[331175546,1720119041443,-330.18593137,0.00013698,2]
[331175547,1720119041453,-500.0,0.00013698,2]
[331175548,1720119041462,-500.0,0.00013698,2]
[331175549,1720119041471,-500.0,0.00013698,2]
[331175550,1720119041481,-500.0,0.00013698,2]
[331175551,1720119041490,-500.0,0.00013698,2]
[331175552,1720119041499,-500.0,0.00013698,2]
[331175553,1720119041508,-501.20225164,0.00013698,2]
[331175554,1720119041517,-500.0,0.00013698,2]
[331175555,1720119041525,-398.27813028,0.00013698,2]
[331175556,1720119041535,-500.0,0.00013698,2]
[331175557,1720119041543,-500.0,0.00013698,2]
[331175558,1720119041553,-500.0,0.00013698,2]
[331175559,1720119041562,-500.0,0.00013698,2]
[331175560,1720119041571,-1784.92,0.00013698,2]
[331175561,1720119041579,-500.0,0.00013698,2]
[331175562,1720119041589,-500.0,0.00013698,2]
[331175563,1720119041598,-1694.53,0.00013698,2]
[331175564,1720119041607,-500.0,0.00013698,2]
[331175565,1720119041617,-500.0,0.00013698,2]
[331175566,1720119041626,-500.0,0.00013698,2]
[331175567,1720119041635,-3816.88,0.00013698,2]
[331175568,1720119041644,-500.0,0.00013698,2]
[331175569,1720119041656,-504.34013973,0.00013698,2]
[331175570,1720119041665,-500.0,0.00013698,2]
[331175571,1720119041674,-500.0,0.00013698,2]
[331175572,1720119041683,-500.0,0.00013698,2]
[331175573,1720119041692,-500.0,0.00013698,2]
[331175574,1720119041701,-964.24,0.00013698,2]
[331175575,1720119041710,-500.0,0.00013698,2]
[331175576,1720119041719,-500.0,0.00013698,2]
[331175577,1720119041730,-4845.25,0.00013698,2]
[331175578,1720119041741,-500.0,0.00013698,2]
[331175579,1720119041751,-500.0,0.00013698,2]
[331175580,1720119041760,-500.0,0.00013698,2]
[331175581,1720119041771,-500.0,0.00013698,2]
[331175582,1720119041780,-500.0,0.00013698,2]
[331175583,1720119041789,-500.0,0.00013698,2]
[331175584,1720119041798,-500.0,0.00013698,2]
[331175585,1720119041806,-500.0,0.00013698,2]
[331175586,1720119041815,-500.0,0.00013698,2]
[331175587,1720119041824,-500.0,0.00013698,2]
[331175588,1720119041833,-642.17,0.00013698,2]
[331175589,1720119041842,-500.0,0.00013698,2]
[331175590,1720119041852,-500.0,0.00013698,2]
[331175591,1720119041863,-500.0,0.00013698,2]
[331175592,1720119041873,-500.0,0.00013698,2]
[331175593,1720119041882,-500.0,0.00013698,2]
[331175594,1720119041891,-511.367925,0.00013698,2]
[331175595,1720119041903,-457.48401546,0.00013698,2]
[331175596,1720119041912,-500.0,0.00013698,2]
[331175597,1720119041920,-500.0,0.00013698,2]
[331175598,1720119041929,-2766.04,0.00013698,2]
[331175599,1720119041941,-500.0,0.00013698,2]
[331175600,1720119041952,-500.0,0.00013698,2]
[331175601,1720119041961,-500.0,0.00013698,2]
[331175602,1720119041970,-500.0,0.00013698,2]
[331175603,1720119041980,-515.53514878,0.00013698,2]
[331175604,1720119041992,-500.0,0.00013698,2]
[331175605,1720119042001,-500.0,0.00013698,2]
[331175606,1720119042010,-630.37202126,0.00013698,2]
[331175607,1720119042023,-500.0,0.00013698,2]
[331175608,1720119042032,-500.0,0.00013698,2]
[331175609,1720119042042,-500.0,0.00013698,2]
[331175610,1720119042051,-552.10888188,0.00013698,2]
[331175611,1720119042061,-500.0,0.00013698,2]
[331175612,1720119042070,-500.0,0.00013698,2]
[331175613,1720119042079,-1613.76,0.00013698,2]
[331175614,1720119042088,-500.0,0.00013698,2]
[331175615,1720119042097,-500.0,0.00013698,2]
[331175616,1720119042106,-500.0,0.00013698,2]
[331175617,1720119042116,-500.0,0.00013698,2]
[331175618,1720119042125,-500.0,0.00013698,2]
[331175619,1720119042134,-500.0,0.00013698,2]
[331175620,1720119042144,-500.0,0.00013698,2]
[331175621,1720119042156,-500.0,0.00013698,2]
[331175622,1720119042165,-3429.51,0.00013698,2]
[331175623,1720119042174,-500.0,0.00013698,2]
[331175624,1720119042183,-500.0,0.00013698,2]
[331175625,1720119042193,-1025.58,0.00013698,2]
[331175626,1720119042202,-500.0,0.00013698,2]
[331175627,1720119042211,-500.0,0.00013698,2]
[331175628,1720119042219,-11956.2,0.00013698,2]
[331175629,1720119042229,-503.74093966,0.00013698,2]
[331175630,1720119042238,-500.0,0.00013698,2]
[331175631,1720119042247,-500.0,0.00013698,2]
[331175632,1720119042256,-500.0,0.00013698,2]
[331175633,1720119042265,-785.28,0.00013698,2]
[331175634,1720119042275,-500.0,0.00013698,2]
[331175635,1720119042284,-500.0,0.00013698,2]
[331175636,1720119042292,-749.15,0.00013698,2]
[331175637,1720119042302,-1180.32,0.00013698,2]
[331175638,1720119042311,-500.0,0.00013698,2]
[331175639,1720119042320,-500.0,0.00013698,2]
[331175640,1720119042330,-3648.38,0.00013698,2]
[331175641,1720119042338,-1927.72,0.00013698,2]
[331175642,1720119042347,-500.0,0.00013698,2]
[331175643,1720119042356,-512.4126193,0.00013698,2]
[331175644,1720119042366,-594.95,0.00013698,2]
[331175645,1720119042375,-1884.17,0.00013698,2]
[331175646,1720119042384,-500.0,0.00013698,2]
[331175647,1720119042393,-503.04132229,0.00013698,2]
[331175648,1720119042405,-500.0,0.00013698,2]
[331175649,1720119042414,-500.0,0.00013698,2]
[331175650,1720119042423,-500.0,0.00013698,2]
[331175651,1720119042432,-500.0,0.00013698,2]
[331175652,1720119042441,-875.42,0.00013698,2]
[331175653,1720119042450,-500.0,0.00013698,2]
[331175654,1720119042459,-500.0,0.00013698,2]
[331175655,1720119042468,-500.0,0.00013698,2]
[331175656,1720119042478,-500.0,0.00013698,2]
[331175657,1720119042488,-500.0,0.00013698,2]
[331175658,1720119042498,-500.0,0.00013698,2]
[331175659,1720119042509,-500.0,0.00013698,2]
[331175660,1720119042518,-500.0,0.00013698,2]
[331175661,1720119042527,-500.0,0.00013698,2]
[331175662,1720119042536,-500.0,0.00013698,2]
[331175663,1720119042547,-500.0,0.00013698,2]
[331175664,1720119042556,-500.0,0.00013698,2]
[331175665,1720119042566,-500.0,0.00013698,2]
[331175666,1720119042575,-500.0,0.00013698,2]
[331175667,1720119042586,-505.69048026,0.00013698,2]
[331175668,1720119042595,-1325.68,0.00013698,2]
[331175669,1720119042605,-500.0,0.00013698,2]
[331175670,1720119042614,-500.0,0.00013698,2]
[331175671,1720119042624,-1325.68,0.00013698,2]
[331175672,1720119042633,-548.85,0.00013698,2]
[331175673,1720119042642,-500.0,0.00013698,2]
[331175674,1720119042653,-1325.68,0.00013698,2]
[331175675,1720119042662,-1325.68,0.00013698,2]
[331175676,1720119042671,-500.0,0.00013698,2]
[331175677,1720119042679,-1325.68,0.00013698,2]
[331175678,1720119042689,-1325.68,0.00013698,2]
[331175679,1720119042697,-1325.68,0.00013698,2]
[331175680,1720119042706,-500.0,0.00013698,2]
[331175681,1720119042715,-500.0,0.00013698,2]
[331175682,1720119042724,-500.0,0.00013698,2]
[331175683,1720119042734,-500.0,0.00013698,2]
[331175684,1720119042743,-500.0,0.00013698,2]
[331175685,1720119042754,-2095.3516675,0.00013699,2]
[331175686,1720119042764,-26997.8058502,0.00013699,2]
[331175687,1720119042773,-2067.21112,0.00013699,2]
[331175688,1720119042783,-3000.0,0.00013699,2]
[331175689,1720119042793,-425.55894176,0.00013872,2]
[331175690,1720119042803,-2000.0,0.00013872,2]
[331175691,1720119042812,-1754.9999994,0.00013962,2]
[331175692,1720119042822,-1325.68,0.00013971,2]
[331175693,1720119042831,-1325.68,0.00013971,2]
[331175694,1720119042840,-1325.68,0.00013971,2]
[331175695,1720119042850,-500.0,0.00013972,2]
[331175696,1720119042860,-500.0,0.00013972,2]
[331175697,1720119042869,-500.0,0.00013972,2]
[331175698,1720119042878,-500.0,0.00013972,2]
[331175699,1720119042889,-500.0,0.00013972,2]
[331175700,1720119042899,-500.0,0.00013972,2]
[331175701,1720119042909,-500.0,0.00013972,2]
[331175702,1720119042918,-500.0,0.00013972,2]
[331175703,1720119042928,-500.0,0.00013972,2]
[331175704,1720119042939,-500.0,0.00013972,2]
[331175705,1720119042952,-500.0,0.00013972,2]
[331175706,1720119042961,-500.0,0.00013972,2]
[331175707,1720119042971,-500.0,0.00013972,2]
[331175708,1720119042981,-500.0,0.00013972,2]